Cogmind - Beta 11.1 @@@ ROGUE MODE // 2022.12.17 @ 17:23:46 Player: Milkduds Result: Destroyed by G-34 Mercenary with Small Laser Performance ------------- Evolutions (0) 0 Regions Visited (1) 200 Robots Destroyed (11) 55 Value Destroyed (241) 241 Prototype IDs (0) 0 Alien Tech Used (0) 0 Bonus (0) 0 TOTAL SCORE: 496 Bonus ------- None Cogmind --------- Core Integrity 0/250 Matter 281/300 Energy 100/100 System Corruption 0% Temperature Cool (6) Movement Core (200) Ox3 Location -10/Materials Parts ------- > --- POWER (1) -------- (None) > --- PROPULSION (2) --- (None) > --- UTILITY (2) ------ Heat Sink Medium Storage Unit > --- WEAPON (2) ------- (None) > --- INVENTORY (10) --- Light Ion Engine Wheel Compact Wheel Heat Sink Small Storage Unit EM Pulse Gun Light Assault Rifle Peak State ------------ > --- POWER ------------ Ion Engine > --- PROPULSION ------- Light Treads Light Treads > --- UTILITY ---------- Small Storage Unit Propulsion Shielding > --- WEAPON ----------- Medium Laser Small Laser > --- INVENTORY -------- Light Ion Engine Light Treads Light Treads EM Pulse Gun [Rating: 7] Favorites ----------- Power Ion Engine Engine Ion Engine Propulsion Light Treads Treads Light Treads Utility Medium Storage Unit Device Heat Sink Storage Medium Storage Unit Protection Propulsion Shielding Weapon Medium Laser Energy Gun Medium Laser Energy Cannon Beam Cannon Build | -11 -10 ------- Run | Scr Mat Slots Evolved . | . . Power . | . . Propulsion . | . . Utility . | . . Weapon . | . . Parts Attached 14 | 6 8 Power 2 | 2 . Engine 2 | 2 . Core . | . . Reactor . | . . Propulsion 4 | 2 2 Treads 4 | 2 2 Leg . | . . Wheel . | . . Hover . | . . Flight . | . . Utility 4 | 1 3 Device 1 | . 1 Storage 2 | 1 1 Processor . | . . Hackware . | . . Protection 1 | . 1 Artifact . | . . Weapon 4 | 1 3 Energy Gun 3 | 1 2 Energy Cannon 1 | . 1 Ballistic Gun . | . . Ballistic Cannon . | . . Launcher . | . . Special Weapon . | . . Impact Weapon . | . . Slashing Weapon . | . . Piercing Weapon . | . . Special Melee Weapon . | . . Unidentified Prototypes . | . . Parts Lost 10 | . 10 Power 1 | . 1 Propulsion 4 | . 4 Utility 1 | . 1 Weapon 4 | . 4 Highest Loss Streak 10 | . 10 To Critical Strikes . | . . Average Slot Usage (%) 85 | . 85 Engine 12 | . 12 Treads 25 | . 25 Device 1 | . 1 Storage 14 | . 14 Protection 8 | . 8 Energy Gun 21 | . 21 Energy Cannon 1 | . 1 Naked Turns . | . . Heaviest Build 20 | 12 20 Greatest Support 40 | 40 40 Greatest Overweight (x) 3 | . 3 Average Overweight (x) . | . . Largest Inventory Capacity 10 | 8 10 Average Capacity 9 | 6 9 Most Carried 7 | 5 7 Average Carried 4 | 2 5 Final Capacity 10 | 8 10 Final Carried 7 | 3 7 Class Distribution -------------------- 100% | Mutant Dominant Class ---------------- Mutant | -10/Materials Resources | -11 -10 ----------- Run | Scr Mat Matter Collected 271 | 194 77 Remotely . | . . Salvage Created 185 | . 185 Parts 17 | . 17 Haulers Intercepted 1 | . 1 Recyclers Shooed . | . . Parts Field Recycled . | . . Retrieved Matter . | . . Parts Self-Destructed . | . . Prevented . | . . Kills | -11 -10 ------- Run | Scr Mat Combat Hostiles Destroyed 6 | . 6 Guns 4 | . 4 Cannons 1 | . 1 AOE 1 | . 1 Classes Destroyed 6 | . 6 Worker 1 | . 1 Builder 2 | . 2 Hauler 1 | . 1 Watcher 1 | . 1 Swarmer 3 | . 3 Grunt 3 | . 3 Best Kill Streak 6 | . 6 Combat Bots Only 3 | . 3 Max Kills in Single Turn 4 | . 4 Gunslinging . | . . Exploded 1 | . 1 Melee . | . . Uniques/NPCs Destroyed . | . . Combat | -11 -10 -------- Run | Scr Mat Damage Taken 1284 | . 1284 Core 258 | . 258 Absorbed by Shields . | . . Redirected to Shielding 51 | . 51 Core Remaining (%) 100 | 100 . Volleys Fired 28 | . 28 Largest 2 | . 2 Hottest 110 | . 110 Shots Fired 52 | . 52 Gun 39 | . 39 Cannon 13 | . 13 Launcher . | . . Special . | . . Kinetic . | . . Thermal 52 | . 52 Explosive . | . . Electromagnetic . | . . Robot Hit Streak 10 | . 10 Robot Miss Streak 9 | . 9 Penetration Max . | . . Secondary Targets 1 | . 1 Max Gunslinging Chain 1 | . 1 Shots Hit Robots 26 | . 26 Core Hits 15 | . 15 Critical Kills . | . . Critical Parts Destroyed . | . . Critical Strikes 1 | . 1 Burn 1 | . 1 Melee Attacks . | . . Impact . | . . Slashing . | . . Piercing . | . . Sneak Attacks . | . . Combat Hostiles . | . . Follow-up Attacks . | . . Damage Inflicted 1021 | . 1021 Guns 294 | . 294 Cannons 141 | . 141 Explosions 586 | . 586 Melee . | . . Ramming . | . . Kinetic . | . . Thermal 1021 | . 1021 Explosive . | . . Electromagnetic . | . . Impact . | . . Slashing . | . . Piercing . | . . Highest Corruption . | . . Average Corruption . | . . Corruption Purged . | . . Corruption Blocked . | . . Overload Shots . | . . Overflow Damage 81 | . 81 Projectiles 3 | . 3 Explosions 78 | . 78 Melee . | . . Knockbacks . | . . Impact . | . . Kinetic . | . . Secondary . | . . Self-Inflicted Damage . | . . Shots . | . . Rammed . | . . Targets Rammed . | . . Kicked . | . . Crushed . | . . Highest Temperature 591 | . 591 Average Temperature 227 | . 227 Received Heat Transfer 582 | . 582 Effects 9 | . 9 Shutdowns 1 | . 1 Energy Bleed 1 | . 1 Short Circuit 2 | . 2 Damage (minor) 2 | . 2 Damage (major) 3 | . 3 Siege Activations . | . . Robots Corrupted . | . . Combat Hostiles . | . . Parts Fried . | . . Impact Corruptions . | . . Robots Melted . | . . Combat Hostiles . | . . Parts Melted 3 | . 3 Heat Transferred 1575 | . 1575 Parts Sabotaged . | . . Parts Stolen . | . . Parts Stripped . | . . Power Chain Reactions . | . . Missiles Intercepted . | . . Alert | -11 -10 ------- Run | Scr Mat Peak Influence 366 | . 366 Initial . | . . Average 63 | . 81 Maximum Alert Level 1 | . 1 Low Security (%) 85 | 100 81 Level 1 14 | . 18 Level 2 . | . . Level 3 . | . . Level 4 . | . . Level 5 . | . . High Security . | . . Max Security . | . . Squads Dispatched 1 | . 1 Investigation . | . . Extermination . | . . Reinforcement 1 | . 1 Assault . | . . Garrison . | . . Intercept . | . . Searches Triggered . | . . Construction Impeded . | . . Haulers Reinforced . | . . Active Scanning Responses . | . . Cargo Convoy Interrupts . | . . Stealth | -11 -10 --------- Run | Scr Mat Distress Signals . | . . Communications Jammed . | . . Distress Signals . | . . Times Spotted 11 | . 11 Peak Tracking Total 5 | . 5 Tactical Retreats . | . . Traps | -11 -10 ------- Run | Scr Mat Traps Triggered . | . . Indirectly . | . . Trap Hack Attempts . | . . Triggered . | . . Disarmed . | . . Reprogrammed . | . . Reused . | . . Traps Extracted . | . . Installed . | . . Triggered . | . . Machines | -11 -10 ---------- Run | Scr Mat Machines Disabled 8 | . 8 Max in Single Turn 8 | . 8 Machines Sabotaged . | . . Garrisons Compromised . | . . Overloaded Fab Kills . | . . Hacking | -11 -10 --------- Run | Scr Mat Machines Accessed 3 | . 3 Terminals 3 | . 3 Fabricators . | . . Repair Stations . | . . Recycling Units . | . . Scanalyzers . | . . Garrison Access . | . . Total Hacks 7 | . 7 Successful 5 | . 5 Failed 2 | . 2 Catastrophic . | . . Database Lockouts . | . . Manual 1 | . 1 Terminals 7 | . 7 Fabricators . | . . Repair Stations . | . . Recycling Units . | . . Scanalyzers . | . . Garrison Access . | . . Terminal Hacks 5 | . 5 Record 2 | . 2 Emergency Access Points 1 | . 1 Alert Level 1 | . 1 Dispatch Records 1 | . 1 Fabricator Hacks . | . . Repair Station Hacks . | . . Recycling Unit Hacks . | . . Scanalyzer . | . . Garrison Access Hacks . | . . Unauthorized Hacks . | . . Terminals . | . . Fabricators . | . . Repair Stations . | . . Recycling Units . | . . Scanalyzers . | . . Garrison Access . | . . Data Cores Recovered . | . . Used . | . . Hacking Detections 1 | . 1 Full Trace Events . | . . Feedback Events . | . . Feedback Blocked . | . . Robot Schematics Acquired . | . . Robots Built . | . . Authchips . | . . Time . | . . Total Robot Build Rating . | . . Part Schematics Acquired . | . . Parts Built . | . . Authchips . | . . Time . | . . Total Part Build Rating . | . . Parts Repaired . | . . Time . | . . Parts Recycled . | . . Recycled Matter . | . . Retrieved Matter . | . . Retrieved Components . | . . Parts Scanalyzed . | . . Part Schematics Acquired . | . . Parts Damaged . | . . Bothacking | -11 -10 ------------ Run | Scr Mat Used RIF Installer . | . . Robots Hacked . | . . Non-combat . | . . Combat . | . . Robot Hacks Applied . | . . Relay Couplers Released . | . . Fabnet Peak Effective % . | . . Robots Rewired . | . . Allies Hacked . | . . Hacks Repelled . | . . Allies | -11 -10 -------- Run | Scr Mat Total Allies . | . . Largest Group . | . . Highest-Rated Group . | . . Highest-Rated Ally . | . . Total Orders . | . . Ally Attacks . | . . Total Damage . | . . Kills . | . . Allies Corrupted . | . . Allies Melted . | . . Intel | -11 -10 ------- Run | Scr Mat Robot Analysis Total . | . . Derelict Logs Recovered . | . . Drone Launches . | . . Drone Recoveries . | . . Exploration | -11 -10 ------------- Run | Scr Mat Turns Passed 531 | 113 418 Spaces Moved 262 | 74 188 Core 35 | 17 18 Treads 227 | 57 170 Legs . | . . Wheels . | . . Hover . | . . Flight . | . . Fastest Speed 50 | 50 160 Average Speed 155 | 134 163 Slowest Speed 200 | 160 200 Overloaded Moves . | . . Propulsion Burnouts . | . . Robots Hopped . | . . Cave-ins Triggered . | . . Exploration Rate (%) 20 | 6 35 Regions Visited 1 Branch Regions . Pre-discovered Areas . | . . Known Exits Taken . | . . Unknown Exits Taken 1 | 1 . Scrap Searched . | . . Spaces Dug . | . . Terrain Destroyed 43 | . 43 Melee . | . . Projectile . | . . AOE 43 | . 43 Terrain Rammed . | . . Walls Destroyed . | . . Machines Disabled . | . . Actions | -11 -10 --------- Run | Scr Mat Total 333 | 87 246 Wait 11 | . 11 Move 261 | 73 188 Hop . | . . Pick Up 19 | 8 11 Fast Attach . | . . Attach 12 | 5 7 Detach . | . . Swap 2 | 1 1 Drop . | . . Fire 28 | . 28 Melee . | . . Ram . | . . Kick . | . . Crush . | . . Escape Stasis . | . . Rewire . | . . Trap . | . . Miscellaneous . | . . Route ------- -11/Scrapyard -10/Materials History --------- Turn | Location | Event 3 | -11/Scrapyard | Discovered new exit (range 15) 114 | -11/Scrapyard | Entered Materials 301 | -10/Materials | Build established: Mutant 496 | -10/Materials | Core integrity fell below 50% 519 | -10/Materials | Core integrity fell below 20% 532 | -10/Materials | Destroyed by G-34 Mercenary with Small Laser Last Messages --------------- K-01 Serf collects debris. G-34 Mercenary destroyed. K-01 Serf collects debris. Acquired Wheel. Acquired 15 matter. K-01 Serf collects debris. Broken Lgt. Treads destroyed. K-01 Serf collects debris. U-05 Engineer lays Concrete. K-01 Serf collects debris. U-05 Engineer lays Concrete. U-05 Engineer builds a Wall. K-01 Serf collects debris. U-05 Engineer lays Concrete. Sml. Laser destroyed. U-05 Engineer lays Concrete. K-01 Serf collects debris. U-05 Engineer lays Concrete. K-01 Serf collects debris. U-05 Engineer lays Concrete. Map ----- +----------------------------------------------------+ | ??????????????????????#! !??????????# ### | | ????????????????## ???#! !??????##### ^ | | ????????????????# # ####### | | ????????????????# ######### | | ??????????????? / #???????? | | ????????????????#" % #???????? | | ????????????????#T """ %#T##### #???????? | | ????????????????#" """ ###???# #####???????? | | ????????????????# """ ??????# #?????????### | | ?????????????????????? ??????# #?????????# | | ?????????????????????? %= ??????# #?????????# " | | ????????????????? ?? #?????# #?????????# " | | ????????????#???# #?????# #?????????# " | | ???????????? ???# #?????# #?????????# | | ???????????? ""?# #?????# ##????????# | | ???????????? Y # k #? "??# T#????????# | | ???????????? """# + ???# ##????????# | | ???????????? # u k ####### #######+##### | | ???????????? # | | ???????????? # | | ???????????" # | | ??????????? # ;#######+## ######## | | # ????????###+### ;#?# # #??????? | | + ####### *%!; ;#?# #? #??????? | | # =|g !;### #??#??????? | | # % @ + #?????????? | | # % #### #?????????? | | ??######### % ;;;;;; ;;;###??# #?????????? | | ??????????#######%g ##????########?????????? | | ????????????????#[ = ! #??????????????????????? | | ????????????????# ! #??????????????????????? | | ????????????????# w! !! #??????????????????????? | | ????????????????# #??????????????????????? | | ????????????????# #??????????????????????? | | ????????????????# #??????????????????????? | | ????????????????# + ?????????????????????? | | ????????????????###+#########????????????????????? | | ?????????????????? ????????????????????????????? | | ?????????????????? ????????????????????????????? | | ?????????????????? ????????????????????????????? | | ?????????????????? [????????????????????????????? | | ?????????????????? [????????????????????????????? | | ?????????????????? [????????????????????????????? | | ??????????????????+##????????????????????????????? | | ?????????????????????????????????????????????????? | | ?????????????????????????????????????????????????? | | ?????????????????????????????????????????????????? | | ?????????????????????????????????????????????????? | | ?????????????????????????????????????????????????? | | ?????????????????????????????????????????????????? | +----------------------------------------------------+ Best States ------------- Heat Dissipation 35 Energy Generation 10 Energy Capacity 250 Matter Stores 296 Matter Capacity 300 Sight Range 16 Terrain Scan Density 10 Propulsion Shielding 33 Evasion (%) 50 Recoil Reduction 2 Item Schematics ----------------- None Robot Schematics ------------------ None Fabricated ------------ Nothing Alien Tech Used ----------------- None Achievements -------------- Loot Pinata Challenges ------------ None Game ------ Seed ForceSupercompositeCarapace Manual? 0 Play Time 00:10:41 Cumulative 2.3 hours Start 2022.12.17 @ 17:14:31 End 2022.12.17 @ 17:23:46 Sessions 1 Manual Loads 0 Difficulty Rogue Special Mode None Game No. 4 Rogue 4 Adventurer 0 Explorer 0 Win Type - Total 0 Types 0/0/0/0/0/0/0/0/0 Lore% 4 Gallery% 4 Achievement% 8 Wizard Run 0 Options --------- ASCII 0 Keyboard 0 Movement Mouse Keybinds 0 Fullscreen 1 Font 24/Smallcaps Map View 76x50 Tactical HUD 0 Map Filters NONE Filters NONE Steam 1 RUN: a08b1485-1f67-459d-b36e-0adf8cf90f45